[Event "Late-Titled-Tuesday-Blitz-August-29-2023"]
[Site "Chess.com"]
[Date "2023.08.29"]
[Round "9"]
[White "Kleyton_Lima"]
[Black "viktorskliarov"]
[Result "1/2-1/2"]
[WhiteElo "2549"]
[BlackElo "2693"]
[TimeControl "180+1"]
[EndTime "15:43:50 PDT"]
[Termination "Game drawn by repetition"]

1. e4 {[%clk 0:03:00.9]} 1... c5 {[%clk 0:03:00.2]} 2. Nf3 {[%clk 0:03:01.1]}
2... Nc6 {[%clk 0:03:00.9]} 3. d4 {[%clk 0:03:01.5]} 3... cxd4 {[%clk
0:03:01.8]} 4. Nxd4 {[%clk 0:03:02.4]} 4... Nf6 {[%clk 0:03:02.3]} 5. Nc3 {[%clk
0:03:03]} 5... e5 {[%clk 0:03:02.5]} 6. Ndb5 {[%clk 0:03:03.5]} 6... d6 {[%clk
0:03:02.4]} 7. Bg5 {[%clk 0:03:03.7]} 7... a6 {[%clk 0:03:02.2]} 8. Na3 {[%clk
0:03:04.2]} 8... b5 {[%clk 0:03:03.1]} 9. Nab1 {[%clk 0:03:04.5]} 9... Be7
{[%clk 0:02:54]} 10. Bxf6 {[%clk 0:03:04.6]} 10... Bxf6 {[%clk 0:02:53.6]} 11.
a4 {[%clk 0:03:05.5]} 11... b4 {[%clk 0:02:52.4]} 12. Nd5 {[%clk 0:03:06]} 12...
O-O {[%clk 0:02:51]} 13. Bc4 {[%clk 0:03:06.5]} 13... Bg5 {[%clk 0:02:44]} 14.
O-O {[%clk 0:03:06.1]} 14... a5 {[%clk 0:02:40.7]} 15. Qd3 {[%clk 0:03:04.6]}
15... Be6 {[%clk 0:02:38.8]} 16. c3 {[%clk 0:03:02]} 16... bxc3 {[%clk
0:02:36.2]} 17. Nbxc3 {[%clk 0:02:46]} 17... Rb8 {[%clk 0:02:18.4]} 18. Nb5
{[%clk 0:02:36.1]} 18... Kh8 {[%clk 0:02:07.2]} 19. Rfd1 {[%clk 0:02:34.8]}
19... f5 {[%clk 0:02:05]} 20. f3 {[%clk 0:02:18.9]} 20... fxe4 {[%clk
0:02:02.9]} 21. Qxe4 {[%clk 0:02:17.3]} 21... Bf5 {[%clk 0:01:58.1]} 22. Qe2
{[%clk 0:02:17.3]} 22... Bg6 {[%clk 0:01:44]} 23. Kh1 {[%clk 0:02:12.4]} 23...
Rb7 {[%clk 0:01:23.7]} 24. Re1 {[%clk 0:02:03.1]} 24... Nd4 {[%clk 0:01:09.1]}
25. Nxd4 {[%clk 0:02:01.7]} 25... exd4 {[%clk 0:01:09.7]} 26. Rad1 {[%clk
0:01:56.5]} 26... Bf6 {[%clk 0:00:49]} 27. b3 {[%clk 0:01:50.8]} 27... Re8
{[%clk 0:00:28]} 28. Qf2 {[%clk 0:01:49.5]} 28... Rb8 {[%clk 0:00:16.8]} 29.
Rxe8+ {[%clk 0:01:36.4]} 29... Bxe8 {[%clk 0:00:11.9]} 30. Nxf6 {[%clk
0:01:36.1]} 30... Qxf6 {[%clk 0:00:11.9]} 31. Qxd4 {[%clk 0:01:32.5]} 31... Qxd4
{[%clk 0:00:11.6]} 32. Rxd4 {[%clk 0:01:33.4]} 32... Bxa4 {[%clk 0:00:11.6]} 33.
Rxd6 {[%clk 0:01:29]} 33... g6 {[%clk 0:00:08.2]} 34. Rd3 {[%clk 0:01:23.4]}
34... Bb5 {[%clk 0:00:08.2]} 35. h4 {[%clk 0:01:19.2]} 35... Bxc4 {[%clk
0:00:07.9]} 36. bxc4 {[%clk 0:01:20.1]} 36... Rb1+ {[%clk 0:00:08.2]} 37. Kh2
{[%clk 0:01:20.1]} 37... Rc1 {[%clk 0:00:08.9]} 38. Rd4 {[%clk 0:01:12.7]} 38...
a4 {[%clk 0:00:09.2]} 39. Kg3 {[%clk 0:01:11.6]} 39... a3 {[%clk 0:00:09]} 40.
Rd8+ {[%clk 0:01:11.9]} 40... Kg7 {[%clk 0:00:08.9]} 41. Ra8 {[%clk 0:01:12.8]}
41... Rxc4 {[%clk 0:00:08.4]} 42. Rxa3 {[%clk 0:01:13.2]} 42... h5 {[%clk
0:00:08.9]} 43. Ra6 {[%clk 0:01:12.5]} 43... Rb4 {[%clk 0:00:08.7]} 44. Re6
{[%clk 0:01:12.6]} 44... Rc4 {[%clk 0:00:08.7]} 45. Re3 {[%clk 0:01:12.8]} 45...
Rb4 {[%clk 0:00:07.8]} 46. Kh3 {[%clk 0:01:13.4]} 46... Ra4 {[%clk 0:00:07.6]}
47. Rb3 {[%clk 0:01:13.6]} 47... Rc4 {[%clk 0:00:07.5]} 48. Rb7+ {[%clk
0:01:13.5]} 48... Kf6 {[%clk 0:00:07.4]} 49. Rb6+ {[%clk 0:01:13.7]} 49... Kf7
{[%clk 0:00:07.8]} 50. Rb3 {[%clk 0:01:13.7]} 50... Ra4 {[%clk 0:00:07.4]} 51.
g3 {[%clk 0:01:14.1]} 51... Rc4 {[%clk 0:00:07.3]} 52. Re3 {[%clk 0:01:13.7]}
52... Ra4 {[%clk 0:00:07.2]} 53. g4 {[%clk 0:01:14]} 53... hxg4+ {[%clk
0:00:06.9]} 54. fxg4 {[%clk 0:01:14.9]} 54... Rb4 {[%clk 0:00:06.9]} 55. Kg3
{[%clk 0:01:15.5]} 55... Ra4 {[%clk 0:00:07.3]} 56. Kf3 {[%clk 0:01:16]} 56...
Rb4 {[%clk 0:00:07.2]} 57. Re4 {[%clk 0:01:16.4]} 57... Rb3+ {[%clk 0:00:07.5]}
58. Kf4 {[%clk 0:01:16.5]} 58... Rb5 {[%clk 0:00:07.4]} 59. Re5 {[%clk
0:01:14.1]} 59... Rb7 {[%clk 0:00:04.6]} 60. Kg5 {[%clk 0:01:13.9]} 60... Kg7
{[%clk 0:00:05]} 61. Rc5 {[%clk 0:01:11.9]} 61... Ra7 {[%clk 0:00:05]} 62. Rb5
{[%clk 0:01:07.9]} 62... Rc7 {[%clk 0:00:05]} 63. Rb4 {[%clk 0:01:06.5]} 63...
Rc5+ {[%clk 0:00:04.9]} 64. Kf4 {[%clk 0:01:06.6]} 64... Ra5 {[%clk 0:00:04.7]}
65. Rb7+ {[%clk 0:01:04.1]} 65... Kg8 {[%clk 0:00:05.3]} 66. Re7 {[%clk
0:00:59.8]} 66... Rb5 {[%clk 0:00:04.2]} 67. Re5 {[%clk 0:00:59.3]} 67... Rb7
{[%clk 0:00:04.4]} 68. Kg5 {[%clk 0:00:59.7]} 68... Kg7 {[%clk 0:00:04.7]} 69.
Rc5 {[%clk 0:00:58.4]} 69... Ra7 {[%clk 0:00:03.9]} 70. Rc4 {[%clk 0:00:57.4]}
70... Ra5+ {[%clk 0:00:03.9]} 71. Kf4 {[%clk 0:00:57.8]} 71... Ra7 {[%clk
0:00:04.2]} 72. Rb4 {[%clk 0:00:56.2]} 72... Ra5 {[%clk 0:00:03.9]} 73. Rb7+
{[%clk 0:00:56.1]} 73... Kg8 {[%clk 0:00:04.4]} 74. g5 {[%clk 0:00:56.7]} 74...
Ra4+ {[%clk 0:00:04.1]} 75. Ke5 {[%clk 0:00:56.4]} 75... Rxh4 {[%clk 0:00:03.5]}
76. Kf6 {[%clk 0:00:56.6]} 76... Ra4 {[%clk 0:00:03.3]} 77. Rb8+ {[%clk
0:00:54.6]} 77... Kh7 {[%clk 0:00:03.2]} 78. Rb7+ {[%clk 0:00:55.2]} 78... Kg8
{[%clk 0:00:03.6]} 79. Kxg6 {[%clk 0:00:55.8]} 79... Ra6+ {[%clk 0:00:03.1]} 80.
Kh5 {[%clk 0:00:56.4]} 80... Rc6 {[%clk 0:00:03.5]} 81. g6 {[%clk 0:00:56.7]}
81... Rc1 {[%clk 0:00:03.3]} 82. Rb8+ {[%clk 0:00:56.5]} 82... Kg7 {[%clk
0:00:03.5]} 83. Rb7+ {[%clk 0:00:57.1]} 83... Kg8 {[%clk 0:00:04.3]} 84. Rb8+
{[%clk 0:00:57.7]} 84... Kg7 {[%clk 0:00:05]} 85. Rb7+ {[%clk 0:00:58.3]} 85...
Kg8 {[%clk 0:00:05.7]} 1/2-1/2

[Event "Late-Titled-Tuesday-Blitz-August-29-2023"]
[Site "Chess.com"]
[Date "2023.08.29"]
[Round "9"]
[White "Goryachkina"]
[Black "scandalgod"]
[Result "1-0"]
[WhiteElo "2649"]
[BlackElo "2497"]
[TimeControl "180+1"]
[EndTime "15:43:59 PDT"]
[Termination "Goryachkina won on time"]

1. e4 {[%clk 0:02:57.4]} 1... e5 {[%clk 0:02:58.7]} 2. Nf3 {[%clk 0:02:57.2]}
2... Nc6 {[%clk 0:02:57.8]} 3. Bc4 {[%clk 0:02:57.4]} 3... Nf6 {[%clk
0:02:54.2]} 4. d3 {[%clk 0:02:56.4]} 4... Be7 {[%clk 0:02:53.7]} 5. O-O {[%clk
0:02:50.6]} 5... O-O {[%clk 0:02:53.6]} 6. a3 {[%clk 0:02:49.6]} 6... d6 {[%clk
0:02:52]} 7. Nc3 {[%clk 0:02:47.7]} 7... Bg4 {[%clk 0:02:49.8]} 8. h3 {[%clk
0:02:47.5]} 8... Bh5 {[%clk 0:02:49]} 9. Be3 {[%clk 0:02:43.7]} 9... Qd7 {[%clk
0:02:38.5]} 10. Nd5 {[%clk 0:02:41.9]} 10... Rae8 {[%clk 0:02:33.6]} 11. c3
{[%clk 0:02:41.2]} 11... Bd8 {[%clk 0:02:32.9]} 12. Kh1 {[%clk 0:02:28.5]} 12...
Nxd5 {[%clk 0:02:23.6]} 13. Bxd5 {[%clk 0:02:28.4]} 13... Kh8 {[%clk 0:02:19]}
14. g4 {[%clk 0:02:26.3]} 14... Bg6 {[%clk 0:02:18.1]} 15. Rg1 {[%clk 0:02:16]}
15... Qc8 {[%clk 0:02:11]} 16. Nh2 {[%clk 0:02:00.6]} 16... f6 {[%clk 0:02:08]}
17. Nf1 {[%clk 0:01:59.2]} 17... Bf7 {[%clk 0:02:06.2]} 18. Bxf7 {[%clk
0:01:55.5]} 18... Rxf7 {[%clk 0:02:06.1]} 19. Ng3 {[%clk 0:01:55.8]} 19... Ne7
{[%clk 0:02:03.7]} 20. Qf3 {[%clk 0:01:52.9]} 20... Ref8 {[%clk 0:02:02.2]} 21.
Nf5 {[%clk 0:01:51.3]} 21... Ng8 {[%clk 0:01:58]} 22. h4 {[%clk 0:01:39.3]}
22... g6 {[%clk 0:01:57.4]} 23. Nh6 {[%clk 0:01:39.1]} 23... Nxh6 {[%clk
0:01:57.6]} 24. Bxh6 {[%clk 0:01:39.8]} 24... Rg8 {[%clk 0:01:57]} 25. Bd2
{[%clk 0:01:26.7]} 25... Qe6 {[%clk 0:01:53.8]} 26. h5 {[%clk 0:01:21.5]} 26...
gxh5 {[%clk 0:01:31.6]} 27. gxh5 {[%clk 0:01:19.7]} 27... Rfg7 {[%clk
0:01:30.7]} 28. Rxg7 {[%clk 0:01:17.3]} 28... Rxg7 {[%clk 0:01:30.5]} 29. Rg1
{[%clk 0:01:16.7]} 29... Rxg1+ {[%clk 0:01:25.6]} 30. Kxg1 {[%clk 0:01:17.6]}
30... Be7 {[%clk 0:01:25.6]} 31. Kf1 {[%clk 0:01:09.5]} 31... Bf8 {[%clk
0:01:21.5]} 32. Ke2 {[%clk 0:01:09.3]} 32... c6 {[%clk 0:00:53]} 33. c4 {[%clk
0:01:07.7]} 33... a6 {[%clk 0:00:51.4]} 34. a4 {[%clk 0:01:00.1]} 34... Kg7
{[%clk 0:00:42.7]} 35. h6+ {[%clk 0:00:55.5]} 35... Kf7 {[%clk 0:00:39.6]} 36.
Qh5+ {[%clk 0:00:52.8]} 36... Kg8 {[%clk 0:00:34.4]} 37. b3 {[%clk 0:00:49.3]}
37... Qf7 {[%clk 0:00:26.4]} 38. Qg4+ {[%clk 0:00:48.3]} 38... Qg6 {[%clk
0:00:22.7]} 39. Qe6+ {[%clk 0:00:48.1]} 39... Qf7 {[%clk 0:00:22.9]} 40. Qc8
{[%clk 0:00:47.6]} 40... Qe7 {[%clk 0:00:19.1]} 41. Kd1 {[%clk 0:00:46]} 41...
Kf7 {[%clk 0:00:18.5]} 42. Kc2 {[%clk 0:00:44.8]} 42... Kg8 {[%clk 0:00:12.8]}
43. f4 {[%clk 0:00:41.4]} 43... Qf7 {[%clk 0:00:12]} 44. f5 {[%clk 0:00:37.4]}
44... Qe7 {[%clk 0:00:10.3]} 45. b4 {[%clk 0:00:29.2]} 45... Kf7 {[%clk
0:00:10]} 46. Kb2 {[%clk 0:00:28.2]} 46... Kg8 {[%clk 0:00:09.7]} 47. b5 {[%clk
0:00:26.7]} 47... axb5 {[%clk 0:00:09]} 48. axb5 {[%clk 0:00:27.2]} 48... cxb5
{[%clk 0:00:06.7]} 49. cxb5 {[%clk 0:00:27.3]} 49... Qf7 {[%clk 0:00:06.3]} 50.
Bb4 {[%clk 0:00:24.4]} 50... Qe7 {[%clk 0:00:06.3]} 51. b6 {[%clk 0:00:23]}
51... Kf7 {[%clk 0:00:06.5]} 52. Qc7 {[%clk 0:00:19.5]} 52... Kg8 {[%clk
0:00:04.3]} 53. Kb3 {[%clk 0:00:10.8]} 53... Kf7 {[%clk 0:00:04.5]} 54. Kc4
{[%clk 0:00:10.3]} 54... Ke8 {[%clk 0:00:03.7]} 55. Qc8+ {[%clk 0:00:05.9]}
55... Kf7 {[%clk 0:00:03.7]} 56. Kd5 {[%clk 0:00:06]} 56... Bxh6 {[%clk
0:00:02.4]} 57. Bxd6 {[%clk 0:00:03.2]} 57... Qe8 {[%clk 0:00:02.4]} 58. Qxb7+
{[%clk 0:00:03.1]} 58... Kg8 {[%clk 0:00:02.3]} 59. Qc6 {[%clk 0:00:03]} 59...
Qf7+ {[%clk 0:00:01.4]} 60. Kc5 {[%clk 0:00:03.4]} 60... Be3+ {[%clk 0:00:01.2]}
61. Kb5 {[%clk 0:00:03.7]} 1-0

[Event "Late-Titled-Tuesday-Blitz-August-29-2023"]
[Site "Chess.com"]
[Date "2023.08.29"]
[Round "9"]
[White "Leo_C"]
[Black "colegiodemadrid"]
[Result "1-0"]
[WhiteElo "2567"]
[BlackElo "2451"]
[TimeControl "180+1"]
[EndTime "15:44:02 PDT"]
[Termination "Leo_C won by checkmate"]

1. d4 {[%clk 0:03:00.9]} 1... Nf6 {[%clk 0:02:59.7]} 2. Bf4 {[%clk 0:03:01]}
2... g6 {[%clk 0:02:59.5]} 3. e3 {[%clk 0:03:01.2]} 3... Bg7 {[%clk 0:02:59.7]}
4. Nf3 {[%clk 0:03:01.7]} 4... O-O {[%clk 0:03:00]} 5. Be2 {[%clk 0:03:01.8]}
5... d6 {[%clk 0:03:00.7]} 6. h3 {[%clk 0:03:02]} 6... c5 {[%clk 0:03:01.3]} 7.
c3 {[%clk 0:03:01]} 7... Be6 {[%clk 0:03:01.9]} 8. O-O {[%clk 0:02:58.9]} 8...
Qb6 {[%clk 0:03:01.6]} 9. Qc2 {[%clk 0:02:51.7]} 9... Nc6 {[%clk 0:03:00.1]} 10.
Nbd2 {[%clk 0:02:51.9]} 10... Rfc8 {[%clk 0:02:59.9]} 11. Qb1 {[%clk 0:02:41.6]}
11... cxd4 {[%clk 0:02:42.9]} 12. exd4 {[%clk 0:02:35.8]} 12... Nh5 {[%clk
0:02:38.6]} 13. Be3 {[%clk 0:02:31.3]} 13... Qc7 {[%clk 0:02:25.4]} 14. Ng5
{[%clk 0:02:25.8]} 14... Bf5 {[%clk 0:02:21.5]} 15. Qd1 {[%clk 0:02:22.3]} 15...
Nf6 {[%clk 0:02:19]} 16. Qb3 {[%clk 0:02:21.6]} 16... d5 {[%clk 0:02:09.4]} 17.
Rfe1 {[%clk 0:02:18.3]} 17... h6 {[%clk 0:02:08.6]} 18. Ngf3 {[%clk 0:02:17.7]}
18... Na5 {[%clk 0:02:06.1]} 19. Qa4 {[%clk 0:02:14.9]} 19... a6 {[%clk
0:02:01.5]} 20. Ne5 {[%clk 0:02:11.3]} 20... b5 {[%clk 0:02:00.6]} 21. Qd1
{[%clk 0:02:11.1]} 21... Nc4 {[%clk 0:02:00.4]} 22. Ndxc4 {[%clk 0:02:09]} 22...
bxc4 {[%clk 0:02:00.9]} 23. Qc1 {[%clk 0:02:04.8]} 23... h5 {[%clk 0:01:48.3]}
24. g4 {[%clk 0:02:01.9]} 24... hxg4 {[%clk 0:01:44.7]} 25. hxg4 {[%clk
0:02:02.8]} 25... Be6 {[%clk 0:01:43.6]} 26. Bh6 {[%clk 0:01:59.9]} 26... Nd7
{[%clk 0:01:37.7]} 27. Bxg7 {[%clk 0:01:49.7]} 27... Kxg7 {[%clk 0:01:38.6]} 28.
f4 {[%clk 0:01:50]} 28... Nxe5 {[%clk 0:01:36.9]} 29. fxe5 {[%clk 0:01:50.1]}
29... Rh8 {[%clk 0:01:33.9]} 30. Kg2 {[%clk 0:01:33.6]} 30... Qd7 {[%clk
0:01:31]} 31. Qf4 {[%clk 0:01:25.7]} 31... Rab8 {[%clk 0:01:27.1]} 32. Rh1
{[%clk 0:01:14]} 32... Qa4 {[%clk 0:01:17]} 33. Rxh8 {[%clk 0:01:00.2]} 33...
Rxh8 {[%clk 0:01:15.4]} 34. Bd1 {[%clk 0:01:00.1]} 34... Qb5 {[%clk 0:01:12.6]}
35. Rb1 {[%clk 0:00:54.9]} 35... Rh7 {[%clk 0:01:08.4]} 36. Qg5 {[%clk
0:00:46.9]} 36... Qe8 {[%clk 0:01:03.6]} 37. b4 {[%clk 0:00:43.2]} 37... f6
{[%clk 0:00:54.5]} 38. exf6+ {[%clk 0:00:38.5]} 38... exf6 {[%clk 0:00:55.4]}
39. Qf4 {[%clk 0:00:39.1]} 39... Bf7 {[%clk 0:00:50.7]} 40. Bf3 {[%clk
0:00:37.6]} 40... Qa4 {[%clk 0:00:47.3]} 41. Qd2 {[%clk 0:00:32.3]} 41... Qd7
{[%clk 0:00:35.3]} 42. Qf4 {[%clk 0:00:32.1]} 42... g5 {[%clk 0:00:27.6]} 43.
Qg3 {[%clk 0:00:24.6]} 43... Rh4 {[%clk 0:00:17.9]} 44. Rh1 {[%clk 0:00:17.9]}
44... Rxh1 {[%clk 0:00:16.3]} 45. Kxh1 {[%clk 0:00:18.8]} 45... Qa4 {[%clk
0:00:16.4]} 46. Qc7 {[%clk 0:00:15.3]} 46... Kg6 {[%clk 0:00:13.8]} 47. Qc8
{[%clk 0:00:10.3]} 47... Qxa2 {[%clk 0:00:12.8]} 48. Qf5+ {[%clk 0:00:10.3]}
48... Kg7 {[%clk 0:00:13.2]} 49. Bxd5 {[%clk 0:00:10.3]} 49... Qa1+ {[%clk
0:00:13.2]} 50. Kh2 {[%clk 0:00:07.9]} 50... Qb2+ {[%clk 0:00:13.8]} 51. Kh1
{[%clk 0:00:07.8]} 51... Qc1+ {[%clk 0:00:13.8]} 52. Kh2 {[%clk 0:00:06.1]}
52... Qd2+ {[%clk 0:00:14.2]} 53. Kh1 {[%clk 0:00:05.4]} 53... Qe1+ {[%clk
0:00:14.4]} 54. Kh2 {[%clk 0:00:04.5]} 54... Bg6 {[%clk 0:00:12.4]} 55. Qd7+
{[%clk 0:00:03.9]} 55... Kh6 {[%clk 0:00:13.1]} 56. Qd6 {[%clk 0:00:04]} 56...
Qf2+ {[%clk 0:00:10]} 57. Kh1 {[%clk 0:00:03.9]} 57... Qf1+ {[%clk 0:00:08.5]}
58. Kh2 {[%clk 0:00:03.9]} 58... Qf2+ {[%clk 0:00:08.5]} 59. Kh1 {[%clk
0:00:04]} 59... Qh4+ {[%clk 0:00:09.1]} 60. Kg1 {[%clk 0:00:04.1]} 60... Qxg4+
{[%clk 0:00:09.4]} 61. Kf2 {[%clk 0:00:04.7]} 61... Qh4+ {[%clk 0:00:08.4]} 62.
Kg2 {[%clk 0:00:04.8]} 62... Qg4+ {[%clk 0:00:05.4]} 63. Kf2 {[%clk 0:00:05.1]}
63... Qd1 {[%clk 0:00:06]} 64. Qxf6 {[%clk 0:00:03.5]} 64... Qd2+ {[%clk
0:00:05.5]} 65. Kg1 {[%clk 0:00:02.7]} 65... Qe3+ {[%clk 0:00:04.9]} 66. Kg2
{[%clk 0:00:03.2]} 66... Qxc3 {[%clk 0:00:04.3]} 67. Qf8+ {[%clk 0:00:03]} 67...
Kh5 {[%clk 0:00:04.1]} 68. Qh8+ {[%clk 0:00:02.7]} 68... Kg4 {[%clk 0:00:03.8]}
69. Be6+ {[%clk 0:00:02.9]} 69... Kf4 {[%clk 0:00:03.9]} 70. Qe5# {[%clk
0:00:02.6]} 1-0

[Event "Late-Titled-Tuesday-Blitz-August-29-2023"]
[Site "Chess.com"]
[Date "2023.08.29"]
[Round "9"]
[White "YEIKO2017"]
[Black "S-Fazulyanov"]
[Result "1-0"]
[WhiteElo "2476"]
[BlackElo "2555"]
[TimeControl "180+1"]
[EndTime "15:44:05 PDT"]
[Termination "YEIKO2017 won on time"]

1. e4 {[%clk 0:03:00.9]} 1... c5 {[%clk 0:03:00.1]} 2. Nf3 {[%clk 0:02:59.9]}
2... Nc6 {[%clk 0:02:59.1]} 3. Bb5 {[%clk 0:02:58.8]} 3... g6 {[%clk 0:02:59]}
4. c3 {[%clk 0:02:58.2]} 4... Bg7 {[%clk 0:02:58.6]} 5. d4 {[%clk 0:02:58.3]}
5... cxd4 {[%clk 0:02:46.5]} 6. cxd4 {[%clk 0:02:59.2]} 6... Qa5+ {[%clk
0:02:16.3]} 7. Nc3 {[%clk 0:02:57.9]} 7... Nf6 {[%clk 0:02:16.2]} 8. Qe2 {[%clk
0:02:44.1]} 8... a6 {[%clk 0:02:04.6]} 9. Bxc6 {[%clk 0:02:40.7]} 9... dxc6
{[%clk 0:02:05.5]} 10. h3 {[%clk 0:02:40.9]} 10... O-O {[%clk 0:02:04.9]} 11.
O-O {[%clk 0:02:40.5]} 11... h6 {[%clk 0:01:50.3]} 12. e5 {[%clk 0:02:34.7]}
12... Nd5 {[%clk 0:01:49.7]} 13. Ne4 {[%clk 0:02:32.6]} 13... Bf5 {[%clk
0:01:40.9]} 14. Ng3 {[%clk 0:02:29.8]} 14... Be6 {[%clk 0:01:40.4]} 15. a4
{[%clk 0:02:18.4]} 15... Nb6 {[%clk 0:01:20.6]} 16. Bf4 {[%clk 0:02:01.8]} 16...
Bc4 {[%clk 0:01:18.9]} 17. Qe3 {[%clk 0:01:58.7]} 17... Nd5 {[%clk 0:01:16.3]}
18. Qd2 {[%clk 0:01:47]} 18... Qxd2 {[%clk 0:01:14]} 19. Bxd2 {[%clk 0:01:47.9]}
19... Bxf1 {[%clk 0:01:13.3]} 20. Kxf1 {[%clk 0:01:48.8]} 20... a5 {[%clk
0:01:07.6]} 21. Ne4 {[%clk 0:01:46.5]} 21... Rfd8 {[%clk 0:01:06]} 22. Rc1
{[%clk 0:01:40.4]} 22... Nb4 {[%clk 0:01:05.5]} 23. Ke2 {[%clk 0:01:34.6]} 23...
b5 {[%clk 0:00:26.7]} 24. Nc5 {[%clk 0:01:26.9]} 24... Nd5 {[%clk 0:00:21.4]}
25. Nb7 {[%clk 0:01:20.3]} 25... Rdb8 {[%clk 0:00:21]} 26. Nxa5 {[%clk
0:01:19.2]} 26... bxa4 {[%clk 0:00:20.9]} 27. Nxc6 {[%clk 0:01:19.4]} 27... Rxb2
{[%clk 0:00:21]} 28. Kd3 {[%clk 0:01:17.2]} 28... a3 {[%clk 0:00:20.5]} 29. Ra1
{[%clk 0:01:12.1]} 29... a2 {[%clk 0:00:19.4]} 30. Ke4 {[%clk 0:01:03.3]} 30...
Rb1 {[%clk 0:00:19.5]} 31. Rxa2 {[%clk 0:01:01.4]} 31... Nc3+ {[%clk 0:00:13.1]}
32. Bxc3 {[%clk 0:00:57.6]} 32... Rxa2 {[%clk 0:00:13.3]} 33. Nxe7+ {[%clk
0:00:55.6]} 33... Kh7 {[%clk 0:00:13.3]} 34. d5 {[%clk 0:00:51]} 34... Rxf2
{[%clk 0:00:12.1]} 35. d6 {[%clk 0:00:48.7]} 35... Bf8 {[%clk 0:00:10.9]} 36.
Nd5 {[%clk 0:00:44.7]} 36... Rxg2 {[%clk 0:00:10]} 37. Nf6+ {[%clk 0:00:44]}
37... Kg7 {[%clk 0:00:09.6]} 38. d7 {[%clk 0:00:35.1]} 38... Be7 {[%clk
0:00:08.8]} 39. e6 {[%clk 0:00:30.6]} 39... fxe6 {[%clk 0:00:07.3]} 40. Ne8+
{[%clk 0:00:25.3]} 40... Kf7 {[%clk 0:00:07.6]} 41. Ne5+ {[%clk 0:00:25.7]}
41... Kf8 {[%clk 0:00:07.3]} 42. Kf3 {[%clk 0:00:20.9]} 42... Rc2 {[%clk
0:00:07.1]} 43. Nxg6+ {[%clk 0:00:20.7]} 43... Kf7 {[%clk 0:00:06.7]} 44. Ne5+
{[%clk 0:00:15.7]} 44... Kg8 {[%clk 0:00:06.4]} 45. Bd4 {[%clk 0:00:14.6]} 45...
Rb8 {[%clk 0:00:05.9]} 46. Ke4 {[%clk 0:00:13.7]} 46... Rd2 {[%clk 0:00:05.3]}
47. Nc6 {[%clk 0:00:12.5]} 47... Kf7 {[%clk 0:00:01.1]} 48. Nxb8 {[%clk
0:00:12.3]} 48... Bg5 {[%clk 0:00:01.5]} 49. Nc6 {[%clk 0:00:10.9]} 49... e5
{[%clk 0:00:01.1]} 50. Nxe5+ {[%clk 0:00:07.1]} 50... Ke7 {[%clk 0:00:02]} 51.
Kd5 {[%clk 0:00:05.6]} 51... Kd8 {[%clk 0:00:01.9]} 52. Nd6 {[%clk 0:00:05]}
52... Ke7 {[%clk 0:00:02.3]} 53. Nf5+ {[%clk 0:00:04.8]} 53... Kd8 {[%clk
0:00:02.4]} 54. Ke6 {[%clk 0:00:05.3]} 54... Kc7 {[%clk 0:00:03]} 55. Nc6 {[%clk
0:00:05]} 55... Kxc6 {[%clk 0:00:02.7]} 56. d8=Q {[%clk 0:00:05.9]} 56... Re2+
{[%clk 0:00:03.6]} 57. Be5 {[%clk 0:00:05.3]} 57... Rd2 {[%clk 0:00:04.5]} 58.
Qxd2 {[%clk 0:00:04.8]} 58... Bf6 {[%clk 0:00:05.4]} 59. Bxf6 {[%clk 0:00:04.7]}
59... Kb5 {[%clk 0:00:05.7]} 60. Qc3 {[%clk 0:00:05.4]} 1-0